fUSD/lending_fUSD_20240727
["ID","MTS","AMOUNT","RATE_DAILY","PERIOD"]
[333386988,1722090645798,-1556.80625385,0.000106,2]
[333386991,1722090645809,-20392.39491144,0.000106,2]
[333386993,1722090645821,-446.43025898,0.000106,2]
[333386995,1722090645832,-1344.69267959,0.000106,2]
[333386997,1722090645844,-1149.49488646,0.000106,2]
[333386999,1722090645855,-739.79148217,0.000106,2]
[333387001,1722090645866,-1501.02251226,0.000106,2]
[333387003,1722090645877,-1331.13658926,0.000106,2]
[333387005,1722090645893,-950.81443091,0.000106,2]
[333387006,1722090645904,-2210.0,0.000106,2]
[333387007,1722090645915,-1644.15644672,0.000106,2]
[333387009,1722090645926,-976.23531354,0.000106,2]
[333387011,1722090645937,-6223.91249305,0.000106,2]
[333387013,1722090645948,-25600.61538751,0.000106,2]
[333387016,1722090645959,-920.11067912,0.000106,2]
[333387076,1722090836157,233.6,0.0001337,30]
[333387120,1722091341338,214.13,0.0001337,30]
[333387159,1722091831610,-271.2999999,8.219e-05,2]
[333387170,1722091831663,-341.42630098,8.219e-05,2]
[333387173,1722091831675,-137.22369912,8.219e-05,2]
[333387175,1722091831685,-1201.57050272,8.979e-05,2]
[333387177,1722091831694,-2000.0,8.979e-05,2]
[333387179,1722091831703,-250.0,8.982e-05,2]
[333387181,1722091831712,-1000.0,8.985e-05,2]
[333387183,1722091831723,-1682.11,8.989e-05,2]
[333387185,1722091831733,-2892.7,8.999e-05,2]
[333387187,1722091831742,-1108.317685,9.675e-05,2]
[333387189,1722091831752,-150.0,9.726e-05,2]
[333387190,1722091831761,-321.39,9.761e-05,2]
[333387192,1722091831771,-648.78,9.764e-05,2]
[333387194,1722091831781,-321.39,9.764e-05,2]
[333387195,1722091831790,-321.39,9.766e-05,2]
[333387196,1722091831799,-321.39,9.769e-05,2]
[333387197,1722091831809,-499.99,9.769e-05,2]
[333387198,1722091831819,-321.39,9.771e-05,2]
[333387199,1722091831828,-321.39,9.774e-05,2]
[333387200,1722091831838,-321.39,9.776e-05,2]
[333387201,1722091831847,-355.93,9.778e-05,2]
[333387202,1722091831857,-321.39,9.779e-05,2]
[333387203,1722091831868,-321.39,9.782e-05,2]
[333387204,1722091831878,-321.39,9.784e-05,2]
[333387205,1722091831887,-321.39,9.787e-05,2]
[333387206,1722091831897,-321.39,9.789e-05,2]
[333387207,1722091831907,-321.39,9.792e-05,2]
[333387208,1722091831916,-321.39,9.794e-05,2]
[333387209,1722091831926,-321.39,9.797e-05,2]
[333387210,1722091831936,-321.39,9.8e-05,2]
[333387211,1722091831946,-150.0,9.8e-05,2]
[333387212,1722091831955,-321.39,9.802e-05,2]
[333387213,1722091831965,-321.39,9.805e-05,2]
[333387214,1722091831975,-321.39,9.807e-05,2]
[333387215,1722091831985,-321.39,9.81e-05,2]
[333387216,1722091831994,-1000.0,0.0001,10]
[333387217,1722091832004,-1000.0,0.00010108,2]
[333387218,1722091832015,-1131.56389712,0.000103,2]
[333387219,1722091832031,-92.43610288,0.000103,2]
[333387220,1722091832043,-651.03523097,0.00010389,2]
[333387221,1722091832058,-418.90217464,0.00010389,2]
[333387223,1722091832079,-821.72,0.00010389,2]
[333387225,1722091832092,-781.95019923,0.00010389,2]
[333387226,1722091832104,-834.39239516,0.00010389,2]
[333387227,1722091832116,-224.9761,0.000104,2]
[333387228,1722091832127,-491.985,0.000104,2]
[333387229,1722091832139,-579.09635772,0.000104,2]
[333387230,1722091832152,-827.13712285,0.000104,2]
[333387231,1722091832171,-1591.54521021,0.000104,2]
[333387232,1722091832185,-674.0,0.000104,2]
[333387233,1722091832200,-1200.72830922,0.000104,2]
[333387234,1722091832212,-3951.3695,0.000104,2]
[333387235,1722091832226,-2096.368,0.000104,2]
[333387236,1722091832238,-749.95,0.00010422,2]
[333387237,1722091832251,-18445.98419078,0.000105,2]
[333387238,1722091832263,-600.0,0.000105,2]
[333387239,1722091832276,-2412.15630922,0.000105,2]
[333387240,1722091832287,-500.0,0.000105,2]
[333387241,1722091832298,-1299.5345,0.000105,2]
[333387242,1722091832309,-1000.0,0.000105,2]
[333387243,1722091832320,-4207.90279556,0.000105,2]
[333387244,1722091832333,-941.26867698,0.000105,2]
[333387245,1722091832346,-315.04,0.000105,2]
[333387246,1722091832360,-7055.70082746,0.000105,2]
[333387247,1722091832371,-8334.6724,0.000105,2]
[333387248,1722091832383,-6690.0,0.000105,2]
[333387249,1722091832393,-7500.0,0.000105,2]
[333387250,1722091832403,-1549.4171,0.000105,2]
[333387251,1722091832413,-169.48788588,0.000105,2]
[333387252,1722091832422,-1800.0,0.0001059,2]
[333387253,1722091832432,-52297.98865843,0.0001059,2]
[333387254,1722091832444,-1548.26884953,0.00010597,2]
[333387255,1722091832454,-334895.59779464,0.000106,2]
[333387256,1722091837889,-2029.56143431,0.000106,2]
[333387257,1722091837900,-2425.88576,0.000106,2]
[333387258,1722091837915,-816.70025,0.000106,2]
[333387259,1722091837927,-4499.80743886,0.000106,2]
[333387260,1722091837938,-738.82477009,0.000106,2]
[333387261,1722091837949,-5243.22356511,0.000106,2]
[333387262,1722091837964,-1876.43931272,0.000106,2]
[333387263,1722091837976,-531.79482725,0.000106,2]
[333387264,1722091837987,-457.01406701,0.000106,2]
[333387265,1722091837999,-1202.39730484,0.000106,2]
[333387266,1722091838010,-3643.60526787,0.000106,2]
[333387267,1722091838026,-646627.91729063,0.000106,2]
[333387268,1722091838094,-652.16989619,0.000106,2]
[333387269,1722091838122,-9522.62605882,0.000106,2]
[333387270,1722091838133,-7072.08,0.000106,2]
[333387295,1722091839989,-676.47483956,0.000106,2]
[333387296,1722091840071,-3884.05935606,0.000106,2]
[333387297,1722091840178,-1043.21965598,0.000106,2]
[333387298,1722091840189,-1283.9577871,0.000106,2]
[333387299,1722091840210,-21922.23458186,0.000106,2]
[333387300,1722091840224,-522.77982189,0.000106,2]
[333387318,1722091842732,-8622.66212954,0.000106,2]
[333387319,1722091842787,-1448.63415379,0.000106,2]
[333387320,1722091842800,-2749.18501419,0.000106,2]
[333387321,1722091842815,-1950.40470994,0.000106,2]
[333387322,1722091842826,-5453.45619711,0.000106,2]
[333387323,1722091842838,-498.7999998,0.000106,2]
[333387324,1722091842848,-4650.0,0.000106,2]
[333387325,1722091842864,-877.60613837,0.000106,2]
[333387326,1722091842879,-916.62684167,0.000106,2]
[333387327,1722091842891,-3953.81927455,0.000106,2]
[333387328,1722091842902,-630.36197754,0.000106,2]
[333387329,1722091842945,-1627.10690285,0.000106,2]
[333387330,1722091842956,-1039.9999,0.000106,2]
[333387331,1722091843020,-923.497787,0.000106,2]
[333387332,1722091843032,-1225.80951365,0.000106,2]
[333387347,1722091845736,-921.25626301,0.000106,2]
[333387354,1722091845800,-12489.30172,0.000106,2]
[333387356,1722091845812,-17355.847123,0.000106,2]
[333387363,1722091845878,-2285.06736999,0.000106,2]
[333387366,1722091845890,-690.600222,0.000106,2]
[333387367,1722091845902,-898.31109779,0.000106,2]
[333387368,1722091845975,-1452.451,0.000106,2]
[333387369,1722091845987,-458.35515001,0.000106,2]
[333387370,1722091845999,-1068.66936805,0.000106,2]
[333387371,1722091846011,-410.05313,0.000106,2]
[333387372,1722091846022,-599.38775637,0.000106,2]
[333387373,1722091846034,-133652.81311889,0.000106,2]
[333387382,1722091913582,196.28,0.0001337,30]
[333387385,1722091980851,303.75995892,0.000185,90]
[333387392,1722092432030,179.92,0.0001337,30]
[333387413,1722092925542,164.92,0.0001337,30]
[333387439,1722093031860,-674.95,8.219e-05,2]
[333387442,1722093031869,-16.312,9.857e-05,2]
[333387444,1722093031881,-233.688,9.857e-05,2]
[333387446,1722093031891,-472.42231433,9.858e-05,2]
[333387448,1722093031903,-127.57768567,9.858e-05,2]
[333387450,1722093031914,-400.0,9.884e-05,2]
[333387452,1722093031924,-1250.0,0.0001,2]
[333387454,1722093031934,-674.95,0.00010469,2]
[333387455,1722093031943,-150.0,0.00010499,2]
[333387456,1722093031953,-300.0,0.00010499,2]
[333387457,1722093031963,-500.0,0.000105,2]
[333387458,1722093031972,-1116.4645,0.000105,2]
[333387459,1722093031982,-12694.91159376,0.000105,2]
[333387460,1722093031998,-1937.59434,0.000105,2]
[333387461,1722093032014,-2100.0,0.000105,2]
[333387462,1722093032029,-2116.94139513,0.000105,2]
[333387463,1722093032045,-4467.25007111,0.000105,2]
[333387464,1722093032057,-16501.45468073,0.000105,2]
[333387465,1722093032072,-4443.51873846,0.000105,2]
[333387466,1722093032085,-25698.87808081,0.000105,2]
[333387467,1722093032096,-150.23987145,0.000105,2]
[333387468,1722093032108,-7500.0,0.000105,2]
[333387469,1722093032119,-2500.0,0.000105,2]
[333387470,1722093032131,-185.4183557,0.000105,2]
[333387471,1722093032142,-556.49732665,0.00010599,2]
[333387472,1722093032155,-18910.94936578,0.000106,2]
[333387486,1722093032616,-351.56071379,0.000106,2]
[333387487,1722093032629,-1180.74374656,0.000106,2]
[333387488,1722093032642,-36336.74508855,0.000106,2]
[333387489,1722093032654,-4281.9081366,0.000106,2]
[333387490,1722093032670,-423.56713528,0.000106,2]
[333387492,1722093037907,-2001.43342,0.000105,2]
[333387493,1722093037988,-1101.98299996,0.000105,2]
[333387494,1722093038069,-4396.58358004,0.000105,2]
[333387495,1722093038078,-23253.51683876,0.000106,2]
[333387496,1722093038089,-549.0992818,0.000106,2]
[333387497,1722093038102,-2795.4776167,0.000106,2]
[333387498,1722093038113,-1178.17123837,0.000106,2]
[333387499,1722093038124,-4634.4709202,0.000106,2]
[333387500,1722093038135,-6900.9,0.000106,2]
[333387501,1722093038294,-13561.76674717,0.000106,2]
[333387502,1722093038306,-1632.3621893,0.000106,2]
[333387503,1722093038318,-257.78923644,0.000106,2]
[333387509,1722093040077,-21148.61220765,0.000106,2]
[333387510,1722093040089,-957.39475018,0.000106,2]
[333387511,1722093040101,-705.20406512,0.000106,2]
[333387512,1722093040113,-2455.60406262,0.000106,2]
[333387513,1722093040124,-1049.12365751,0.000106,2]
[333387514,1722093040350,-6485.184,0.000106,2]
[333387515,1722093040437,-3329.20367732,0.000106,2]
[333387516,1722093040448,-6297.41094521,0.000106,2]
[333387528,1722093042938,-1310.01098762,0.000106,2]
[333387541,1722093043012,-8783.19619374,0.000106,2]
[333387543,1722093043023,-680.84002523,0.000106,2]
[333387545,1722093043034,-141764.28675545,0.000106,2]
[333387546,1722093043084,-41313.15151528,0.000106,2]
[333387547,1722093043095,-32462.4423999,0.000106,2]
[333387548,1722093043106,-419061.47254369,0.000106,2]
[333387549,1722093043180,-2179.86755184,0.000106,2]
[333387550,1722093043191,-37662.55554474,0.000106,2]
[333387551,1722093043200,-3000.0,0.000106,2]
[333387552,1722093043209,-833.93,0.000106,2]
[333387553,1722093043218,-698.47,0.000106,2]
[333387554,1722093043228,-833.93,0.000106,2]
[333387555,1722093043238,-261.2,0.000107,2]
[333387556,1722093043247,-179.62485198,0.0001078,2]
[333387557,1722093043257,-185.41835569,0.0001078,2]
[333387558,1722093043266,-150.23987144,0.00010785,2]
[333387559,1722093043275,-362.0,0.00010808,2]
[333387560,1722093043285,-1662.0,0.00010808,2]
[333387561,1722093043294,-1254.0,0.00010808,2]
[333387562,1722093043303,-1829.0,0.00010808,2]
[333387563,1722093043312,-286.765,0.00010808,2]
[333387564,1722093043321,-450.0,0.00010808,2]
[333387565,1722093043331,-621.0,0.00010808,2]
[333387566,1722093043340,-811.0,0.00010808,2]
[333387567,1722093043349,-495.686,0.00010808,2]
[333387568,1722093043359,-150.0,0.00010808,2]
[333387569,1722093043368,-550.0,0.00010808,2]
[333387570,1722093043377,-2384.0,0.00010808,2]
[333387571,1722093043386,-1306.91606164,0.00010808,2]
[333387572,1722093043397,-511.41496135,0.00010808,2]
[333387573,1722093043408,-176.66897701,0.00010808,2]
[333387574,1722093043417,-150.0,0.00010808,2]
[333387575,1722093043428,-36.09587502,0.00010808,2]
[333387576,1722093043439,-562.41626868,0.00010808,2]
[333387577,1722093043454,-2686.4878563,0.00010808,2]
[333387578,1722093043463,-1301.0,0.00010808,2]
[333387579,1722093043475,-2666.6692457,0.00010808,2]
[333387580,1722093043487,-1224.5387,0.00010808,2]
[333387582,1722093043498,-1738.02113,0.00010808,2]
[333387617,1722093046011,-201.7709243,0.00010808,2]
[333387619,1722093046021,-1202.0,0.00010808,2]
[333387621,1722093046030,-683.3090757,0.00010808,2]
[333387623,1722093046041,-784.7279243,0.00010808,2]
[333387625,1722093046052,-2671.6695357,0.00010808,2]
[333387627,1722093046064,-431.50870787,0.00010808,2]
[333387630,1722093046076,-1598.3583,0.00010808,2]
[333387632,1722093046089,-421.46345643,0.00010808,2]
[333387634,1722093046099,-324.138,0.00010808,2]
[333387636,1722093046109,-910.213,0.00010808,2]
[333387638,1722093046119,-346.0,0.0001083,2]
[333387640,1722093046129,-3930.36763189,0.00010857,2]
[333387642,1722093046138,-3692.8391,0.00010858,2]
[333387643,1722093046149,-3930.36763189,0.00010878,2]
[333387644,1722093046159,-115079.14122131,0.00010879,2]
[333387645,1722093046171,-2704.89128419,0.00010879,2]
[333387646,1722093046184,-868.925,0.00010879,2]
[333387647,1722093046195,-522.23783259,0.00010879,2]
[333387648,1722093046207,-6911.7,0.00010879,2]
[333387649,1722093046219,-270.76493749,0.00010879,2]
[333387650,1722093046231,-447.60999904,0.00010879,2]
[333387651,1722093046242,-1584.77000004,0.00010879,2]
[333387652,1722093046254,-12895.71765411,0.00010879,2]
[333387657,1722093047337,-6362.28804746,0.00010879,2]
[333387658,1722093047351,-37364.32685642,0.00010879,2]
[333387659,1722093047363,-1851.36052313,0.00010879,2]
[333387660,1722093047374,-738.64818932,0.00010879,2]
[333387665,1722093412839,151.17,0.0001337,30]
[333387667,1722093820102,1594.657621,1e-08,2]
[333387668,1722093870801,188.0,1e-08,4]
[333387669,1722093873290,1725.0,5e-05,2]
[333387670,1722093877308,151.17,0.0001337,30]
[333387671,1722093893927,1222.39556342,1e-08,2]
[333387672,1722093905573,400.0,3e-05,2]
[333387678,1722093973830,188.0,3e-05,4]
[333387679,1722093976668,363.60345284,3e-05,2]
[333387680,1722093987977,1222.39556342,3e-05,2]
[333387681,1722094012901,3095.94779932,3e-05,2]
[333387682,1722094012921,10000.0,3e-05,2]
[333387683,1722094012942,4679.9935307,3e-05,2]
[333387689,1722094029512,444.40637326,3.636e-05,2]
[333387690,1722094034913,188.0,3e-05,4]
[333387700,1722094045424,1222.39556342,3.636e-05,2]
[333387701,1722094050998,306.38214512,5e-05,2]
[333387703,1722094059179,601.53690382,5e-05,2]
[333387704,1722094063868,160.31154981,5e-05,2]
[333387705,1722094070323,188.0,6.061e-05,4]
[333387706,1722094070849,1369.83582042,5e-05,2]
[333387707,1722094071513,839.13811345,6.061e-05,2]
[333387708,1722094071533,10000.0,6.061e-05,2]
[333387709,1722094071553,6936.80321657,6.061e-05,2]
[333387710,1722094073639,3063.19678343,5e-05,2]
[333387711,1722094073661,10000.0,5e-05,2]
[333387712,1722094073682,10000.0,5e-05,2]
[333387713,1722094073703,10000.0,5e-05,2]
[333387714,1722094073724,10000.0,5e-05,2]
[333387715,1722094073746,10000.0,5e-05,2]
[333387716,1722094073771,10000.0,5e-05,2]
[333387717,1722094073792,10000.0,5e-05,2]
[333387718,1722094073812,10000.0,5e-05,2]
[333387719,1722094073834,10000.0,5e-05,2]
[333387720,1722094073862,10000.0,5e-05,2]
[333387721,1722094073884,10000.0,5e-05,2]
[333387722,1722094073905,10000.0,5e-05,2]
[333387723,1722094073926,7723.27523653,5e-05,2]
[333387724,1722094075852,158.86061706,5e-05,2]
[333387726,1722094085431,1222.39556342,6.061e-05,2]
[333387727,1722094086296,895.46858299,5e-05,2]
[333387728,1722094086317,10000.0,5e-05,2]
[333387729,1722094086340,9473.46530246,5e-05,2]
[333387730,1722094086395,526.53469754,6.061e-05,2]
[333387731,1722094086416,10000.0,6.061e-05,2]
[333387732,1722094086437,7249.40663248,6.061e-05,2]
[333387735,1722094094462,2182.48382135,6.061e-05,2]
[333387736,1722094102648,494.27491217,6.061e-05,2]
[333387737,1722094107353,73.834634,6.061e-05,2]
[333387738,1722094107374,1296.00118642,6.061e-05,2]
[333387739,1722094117337,188.0,6.061e-05,4]
[333387741,1722094137286,7570.38323119,6.061e-05,2]
[333387744,1722094152228,945.61558239,6.061e-05,2]
[333387745,1722094152249,6624.7676488,6.061e-05,2]
[333387746,1722094180245,3375.2323512,6.061e-05,2]
[333387747,1722094180265,10000.0,6.061e-05,2]
[333387748,1722094180288,6993.70153425,6.061e-05,2]
[333387749,1722094182898,3006.29846575,6.061e-05,2]
[333387750,1722094182919,6254.96696719,6.061e-05,2]
[333387756,1722094195249,3745.03303281,6.061e-05,2]
[333387757,1722094195269,10000.0,6.061e-05,2]
[333387758,1722094195289,6623.90085264,6.061e-05,2]
[333387759,1722094196821,1369.83582042,6.061e-05,2]
[333387765,1722094232176,-1222.39556342,7.347e-05,2]
[333387766,1722094232186,-188.0,7.347e-05,4]
[333387767,1722094232196,-700.07453411,7.347e-05,2]
[333387768,1722094232206,-309.33363685,7.347e-05,2]
[333387769,1722094232217,-253.92596233,7.347e-05,2]
[333387771,1722094232227,-3433.37340783,7.347e-05,2]
[333387772,1722094232238,-109.8961068,7.347e-05,2]
[333387773,1722094232247,-2196.38679422,7.347e-05,2]
[333387774,1722094232297,-7064.87863872,7.347e-05,2]
[333387775,1722094232307,-638.44,8.219e-05,2]
[333387776,1722094232317,-575.58,9.298e-05,2]
[333387777,1722094232326,-10000.0,9.309e-05,2]
[333387778,1722094232335,-159.36,9.315e-05,2]
[333387779,1722094232344,-250.0,9.432e-05,2]
[333387780,1722094232353,-2610.27,9.493e-05,2]
[333387781,1722094232362,-2000.0,9.59e-05,2]
[333387782,1722094232371,-150.0,9.669e-05,2]
[333387783,1722094232381,-579.22,9.67e-05,2]
[333387784,1722094232390,-33.58291161,9.67e-05,2]
[333387785,1722094232401,-2645.37708839,9.67e-05,2]
[333387786,1722094232411,-2380.42,9.67e-05,2]
[333387787,1722094232420,-791.77,9.67e-05,2]
[333387788,1722094232429,-257.43291161,9.675e-05,2]
[333387789,1722094232440,-700.0,9.675e-05,2]
[333387790,1722094232518,-42.56708839,9.675e-05,2]
[333387791,1722094232527,-224.43,9.741e-05,2]
[333387792,1722094232537,-200.0,9.9e-05,3]
[333387793,1722094232546,-17.56053635,0.0001,2]
[333387794,1722094232557,-133.42946365,0.0001,2]
[333387795,1722094232566,-32821.35,0.0001,2]
[333387797,1722094232576,-300.41,0.0001,2]
[333387799,1722094232585,-499.99,0.0001,2]
[333387801,1722094232594,-12804.49110925,0.0001,2]
[333387803,1722094232603,-1250.0,0.0001,2]
[333387804,1722094232614,-500.0,0.0001,3]
[333387806,1722094232623,-1666.91,0.00010041,2]
[333387808,1722094232633,-833.93,0.00010041,2]
[333387810,1722094232642,-700.0,0.000101,3]
[333387811,1722094232651,-178.16,0.00010165,2]
[333387813,1722094232661,-1000.0,0.000102,3]
[333387815,1722094232670,-1300.0,0.000103,3]
[333387817,1722094232680,-200.0,0.000104,3]
[333387819,1722094232689,-188.3394847,0.00010421,2]
[333387820,1722094232698,-638.44,0.0001044,2]
[333387822,1722094232708,-1981.99189209,0.0001049,2]
[333387824,1722094232719,-48725.1704,0.000105,2]
[333387826,1722094232728,-200.0,0.000105,3]
[333387828,1722094232737,-200.0,0.000106,3]
[333387830,1722094232746,-1385.0,0.000106,2]
[333387832,1722094232755,-255.0,0.00010635,2]
[333387833,1722094232764,-3481.2333,0.0001067,2]
[333387835,1722094232773,-13388.9337,0.00010679,2]
[333387836,1722094232782,-1000.0,0.00010679,2]
[333387837,1722094232791,-7500.0,0.00010679,2]
[333387838,1722094232801,-1531.796945,0.000107,2]
[333387839,1722094232815,-200.0,0.000107,3]
[333387840,1722094232824,-3000.0,0.0001077,2]
[333387841,1722094232835,-6225.9273,0.00010779,2]
[333387842,1722094232845,-96929.6147,0.00010779,2]
[333387843,1722094232855,-382.2977,0.00010779,2]
[333387844,1722094232864,-352.43506566,0.0001078,2]
[333387845,1722094232873,-254.60970894,0.0001078,2]
[333387846,1722094232882,-165.33891119,0.00010785,2]
[333387847,1722094232892,-179.77556321,0.00010785,2]
[333387848,1722094232902,-170.75660459,0.0001079,2]
[333387849,1722094232911,-500.0,0.00010791,2]
[333387850,1722094232921,-500.0,0.00010792,2]
[333387851,1722094232930,-352.43506564,0.000108,2]
[333387852,1722094232939,-707.0,0.000108,3]
[333387853,1722094232948,-352.43506564,0.00010819,2]
[333387854,1722094232957,-352.43506564,0.00010839,2]
[333387855,1722094232969,-170.75660458,0.00010845,2]
[333387856,1722094232978,-5981.6493,0.00010849,2]
[333387857,1722094232987,-352.43506564,0.00010858,2]
[333387858,1722094232996,-169.5830375,0.00010877,2]
[333387859,1722094233005,-150.01,0.00010878,2]
[333387860,1722094233015,-3787.4941211,0.00010878,2]
[333387861,1722094233024,-196856.39156841,0.00010879,2]
[333387862,1722094233033,-81848.02540682,0.0001088,5]
[333387871,1722094238248,-635.9372998,0.0001088,5]
[333387872,1722094238259,-253.33008332,0.0001088,5]
[333387873,1722094238302,-3680.94239951,0.0001088,5]
[333387874,1722094238576,-31318.83139234,0.0001088,5]
[333387876,1722094238588,-3666.15956312,0.0001088,5]
[333387878,1722094238601,-357136.20488145,0.0001088,5]
[333387880,1722094238612,-31433.51322953,0.0001088,2]
[333387882,1722094238621,-3930.36763189,0.00010883,2]
[333387884,1722094238631,-384458.77311351,0.00010883,2]
[333387885,1722094238640,-151.0,0.00010883,2]
[333387887,1722094238650,-151.0,0.00010883,2]
[333387889,1722094238659,-151.0,0.00010883,2]
[333387891,1722094238668,-219.024641,0.00010883,2]
[333387893,1722094238678,-219.024641,0.00010883,2]
[333387895,1722094238687,-151.0,0.00010883,2]
[333387897,1722094238697,-228.74699,0.00010883,2]
[333387899,1722094238706,-151.0,0.00010883,2]
[333387901,1722094238716,-151.0,0.00010883,2]
[333387903,1722094238727,-151.0,0.00010883,2]
[333387905,1722094238737,-151.16634,0.00010883,2]
[333387907,1722094238746,-1000.0,0.00010885,2]
[333387908,1722094238756,-148385.7807483,0.00010885,2]
[333387909,1722094238767,-8454.59295004,0.00010885,2]
[333387918,1722094240145,-359.58943198,0.00010885,2]
[333387919,1722094240332,-8180.98956712,0.00010885,2]
[333387920,1722094240386,-2643.635,0.00010885,2]
[333387921,1722094240398,-68595.47051943,0.00010885,2]
[333387922,1722094240410,-380.5520982,0.00010885,2]
[333387923,1722094240457,-1581.57156428,0.00010885,2]
[333387924,1722094240468,-3722.64497467,0.00010885,2]
[333387925,1722094240484,-6047.89999998,0.00010885,2]
[333387926,1722094240495,-47454.97434751,0.00010885,2]
[333387927,1722094240509,-1878.64,0.00010885,2]
[333387928,1722094240520,-1818.9,0.00010885,2]
[333387929,1722094240532,-837.74750378,0.00010885,2]
[333387930,1722094240544,-320.10297877,0.00010885,2]
[333387931,1722094240556,-1352.08206824,0.00010885,2]
[333387932,1722094240567,-1042.53380516,0.00010885,2]
[333387933,1722094240578,-16217.0000304,0.00010885,2]
[333387934,1722094240589,-12694.96982004,0.00010885,2]
[333387935,1722094240601,-1031.00172718,0.00010885,2]
[333387936,1722094240612,-1086.34670665,0.00010885,2]
[333387937,1722094240624,-535.85788251,0.00010885,2]
[333387938,1722094240635,-1534.61932229,0.00010885,2]
[333387939,1722094240647,-7064.78736194,0.00010885,2]
[333387981,1722094243199,-2983.2103724,7.347e-05,2]
[333387982,1722094243257,-10989.63334975,7.347e-05,2]
[333387983,1722094243268,-5204.6882,0.00010679,2]
[333387984,1722094243278,-41236.48270504,0.00010885,2]
[333387985,1722094243289,-151.0,0.00010885,2]
[333387986,1722094243298,-151.0,0.00010885,2]
[333387987,1722094243309,-151.0,0.00010885,2]
[333387988,1722094243319,-151.0,0.00010885,2]
[333387989,1722094243329,-151.0,0.00010885,2]
[333387990,1722094243339,-151.022684,0.00010885,2]
[333387991,1722094243349,-151.0,0.00010885,2]
[333387992,1722094243358,-151.131217,0.00010885,2]
[333387993,1722094243368,-151.0,0.00010885,2]
[333387994,1722094243378,-219.024641,0.00010885,2]
[333387995,1722094243387,-219.024641,0.00010885,2]
[333387996,1722094243397,-168.484758,0.00010885,2]
[333387997,1722094243408,-151.0,0.00010885,2]
[333387998,1722094243417,-2380.0,0.00010896,2]
[333387999,1722094243427,-550.0,0.00010896,2]
[333388000,1722094243436,-150.0,0.00010896,2]
[333388001,1722094243446,-1469.785,0.00010896,2]
[333388003,1722094243457,-150.0,0.00010896,2]
[333388005,1722094243468,-2163.634,0.00010896,2]
[333388007,1722094243480,-1301.0,0.00010896,2]
[333388009,1722094243490,-1819.0,0.00010896,2]
[333388011,1722094243500,-362.0,0.00010896,2]
[333388013,1722094243510,-1581.0,0.00010896,2]
[333388015,1722094243519,-1254.0,0.00010896,2]
[333388017,1722094243529,-5831.0,0.00010896,2]
[333388019,1722094243538,-5123.0,0.00010896,2]
[333388021,1722094243547,-1202.0,0.00010896,2]
[333388023,1722094243556,-20156.933,0.00010896,2]
[333388025,1722094243565,-169.5830375,0.00010896,2]
[333388026,1722094243575,-372.4132612,0.00010899,2]
[333388028,1722094243584,-5224.95596202,0.00010899,2]
[333388030,1722094243593,-5224.95596201,0.00010899,2]
[333388032,1722094243602,-5224.95596201,0.00010899,2]
[333388034,1722094243612,-5224.95596201,0.00010899,2]
[333388036,1722094243622,-5224.95596201,0.00010899,2]
[333388038,1722094243632,-5224.95596201,0.00010899,2]
[333388040,1722094243641,-5224.95596201,0.00010899,2]
[333388042,1722094243651,-5224.95596201,0.00010899,2]
[333388044,1722094243660,-5224.95596201,0.00010899,2]
[333388046,1722094243668,-223.73095033,0.00010899,2]
[333388048,1722094243680,-536.69664483,0.00010899,2]
[333388050,1722094243690,-223.73095028,0.00010899,2]
[333388052,1722094243699,-223.73095028,0.00010899,2]
[333388054,1722094243709,-223.73095028,0.00010899,2]
[333388056,1722094243719,-223.73095028,0.00010899,2]
[333388058,1722094243732,-223.73095028,0.00010899,2]
[333388060,1722094243742,-372.4132612,0.000109,2]
[333388062,1722094243751,-536.69664483,0.000109,2]
[333388064,1722094243761,-1612.07638429,0.000109,2]